[Event "Titled Tuesday Blitz April 05 Late 2022"]
[White "Sanchez Alvares, Kelvin Antonio"]
[Black "Kozak, Antoni"]
[WhiteFideId "3906680"]
[BlackFideId "21832030"]
[WhiteElo "2513"]
[BlackElo "2619"]
[Result "0-1"]
[Round "08"]
[TimeControl "180+1"]
[Date "2022.04.06"]
[WhiteClock "0:00:04"]
[BlackClock "0:00:16"]

1. e4 {[%clk 0:03:00]}  c6 {[%clk 0:02:58]} 2. d4 {[%clk 0:03:00]}  d5 {[%clk 0:02:57]} 3. e5 {[%clk 0:03:00]}  Bf5 {[%clk 0:02:57]} 4. Nc3 {[%clk 0:02:56]}  e6 {[%clk 0:02:56]} 5. g4 {[%clk 0:02:56]}  Bg6 {[%clk 0:02:57]} 6. Nge2 {[%clk 0:02:55]}  c5 {[%clk 0:02:56]} 7. h4 {[%clk 0:02:54]}  h5 {[%clk 0:02:55]} 8. Nf4 {[%clk 0:02:54]}  Bh7 {[%clk 0:02:56]} 9. Nxh5 {[%clk 0:02:52]}  Nc6 {[%clk 0:02:55]} 10. Bb5 {[%clk 0:02:52]}  Qb6 {[%clk 0:02:49]} 11. Be3 {[%clk 0:02:50]}  a6 {[%clk 0:02:45]} 12. Bxc6+ {[%clk 0:02:46]}  bxc6 {[%clk 0:02:45]} 13. dxc5 {[%clk 0:02:42]}  Qxb2 {[%clk 0:02:43]} 14. Na4 {[%clk 0:02:40]}  Qxe5 {[%clk 0:02:11]} 15. Nb6 {[%clk 0:02:33]}  Rd8 {[%clk 0:02:10]} 16. O-O {[%clk 0:02:19]}  d4 {[%clk 0:02:00]} 17. Bf4 {[%clk 0:02:19]}  Qxc5 {[%clk 0:02:00]} 18. Bc7 {[%clk 0:02:17]}  Be7 {[%clk 0:01:51]} 19. Bxd8 {[%clk 0:02:07]}  Bxd8 {[%clk 0:01:50]} 20. Na4 {[%clk 0:02:06]}  Qd5 {[%clk 0:01:42]} 21. Nf4 {[%clk 0:01:49]}  Qe4 {[%clk 0:01:36]} 22. Ng2 {[%clk 0:01:41]}  Nf6 {[%clk 0:01:35]} 23. f3 {[%clk 0:01:27]}  Qd5 {[%clk 0:01:33]} 24. Nf4 {[%clk 0:01:22]}  Qd6 {[%clk 0:01:30]} 25. Ng2 {[%clk 0:01:15]}  O-O {[%clk 0:01:23]} 26. Nc3 {[%clk 0:01:05]}  Bc7 {[%clk 0:01:22]} 27. Ne2 {[%clk 0:01:03]}  c5 {[%clk 0:01:14]} 28. g5 {[%clk 0:00:45]}  Nd5 {[%clk 0:01:12]} 29. Qd2 {[%clk 0:00:38]}  Ne3 {[%clk 0:01:11]} 30. f4 {[%clk 0:00:27]}  Nxc2 {[%clk 0:01:09]} 31. Rac1 {[%clk 0:00:24]}  d3 {[%clk 0:01:06]} 32. Ng3 {[%clk 0:00:23]}  c4 {[%clk 0:01:04]} 33. h5 {[%clk 0:00:22]}  Qd4+ {[%clk 0:00:58]} 34. Qf2 {[%clk 0:00:11]}  Bb6 {[%clk 0:00:48]} 35. Qxd4 {[%clk 0:00:10]}  Bxd4+ {[%clk 0:00:49]} 36. Kh2 {[%clk 0:00:11]}  c3 {[%clk 0:00:50]} 37. f5 {[%clk 0:00:08]}  Bxf5 {[%clk 0:00:33]} 38. Nxf5 {[%clk 0:00:07]}  exf5 {[%clk 0:00:34]} 39. Rf3 {[%clk 0:00:07]}  d2 {[%clk 0:00:28]} 40. Rd1 {[%clk 0:00:06]}  Ne3 {[%clk 0:00:18]} 41. Rxe3 {[%clk 0:00:04]}  c2 {[%clk 0:00:17]} 42. Ree1 {[%clk 0:00:04]}  dxe1=Q {[%clk 0:00:16]} 43. Rxe1 {[%clk 0:00:04]}  Bb2 {[%clk 0:00:16]} 44. Ne3 {[%clk 0:00:04]}  c1=Q {[%clk 0:00:16]} 0-1


[Site "https://www.chess.com"]

[Event "Titled Tuesday Blitz April 05 Late 2022"]
[White "Sarana, Alexey"]
[Black "Yuan, Qingyu"]
[WhiteFideId "24133795"]
[BlackFideId "8609772"]
[WhiteElo "2666"]
[BlackElo "2359"]
[Result "1-0"]
[Round "08"]
[TimeControl "180+1"]
[Date "2022.04.05"]
[WhiteClock "0:01:34"]
[BlackClock "0:00:04"]

1. d4 {[%clk 0:02:55]}  d5 {[%clk 0:02:59]} 2. c4 {[%clk 0:02:55]}  e6 {[%clk 0:03:00]} 3. Nc3 {[%clk 0:02:56]}  Nf6 {[%clk 0:03:00]} 4. cxd5 {[%clk 0:02:56]}  exd5 {[%clk 0:03:00]} 5. Bg5 {[%clk 0:02:56]}  c6 {[%clk 0:03:00]} 6. e3 {[%clk 0:02:57]}  h6 {[%clk 0:02:53]} 7. Bh4 {[%clk 0:02:56]}  Be7 {[%clk 0:02:53]} 8. Bd3 {[%clk 0:02:56]}  O-O {[%clk 0:02:54]} 9. Qc2 {[%clk 0:02:55]}  Re8 {[%clk 0:02:53]} 10. Nge2 {[%clk 0:02:53]}  Nbd7 {[%clk 0:02:53]} 11. O-O {[%clk 0:02:53]}  a5 {[%clk 0:02:53]} 12. f3 {[%clk 0:02:52]}  b5 {[%clk 0:02:53]} 13. e4 {[%clk 0:02:46]}  dxe4 {[%clk 0:02:40]} 14. fxe4 {[%clk 0:02:47]}  Ng4 {[%clk 0:02:36]} 15. Bxe7 {[%clk 0:02:46]}  Qxe7 {[%clk 0:02:36]} 16. Qd2 {[%clk 0:02:45]}  b4 {[%clk 0:02:03]} 17. Na4 {[%clk 0:02:44]}  Ba6 {[%clk 0:01:38]} 18. Bxa6 {[%clk 0:02:43]}  Rxa6 {[%clk 0:01:38]} 19. e5 {[%clk 0:02:43]}  Ngf6 {[%clk 0:00:56]} 20. Qd3 {[%clk 0:02:31]}  Raa8 {[%clk 0:00:49]} 21. Ng3 {[%clk 0:02:27]}  Nd5 {[%clk 0:00:44]} 22. Nf5 {[%clk 0:02:28]}  Qg5 {[%clk 0:00:38]} 23. Nd6 {[%clk 0:02:28]}  Re7 {[%clk 0:00:32]} 24. Rae1 {[%clk 0:02:24]}  Rf8 {[%clk 0:00:29]} 25. Rf3 {[%clk 0:02:15]}  Nf4 {[%clk 0:00:25]} 26. Qc2 {[%clk 0:02:13]}  Ng6 {[%clk 0:00:10]} 27. Ref1 {[%clk 0:01:55]}  f6 {[%clk 0:00:06]} 28. Nf5 {[%clk 0:01:50]}  Ree8 {[%clk 0:00:04]} 29. Qb3+ {[%clk 0:01:49]}  Kh7 {[%clk 0:00:04]} 30. e6 {[%clk 0:01:49]}  Nb8 {[%clk 0:00:03]} 31. Nc5 {[%clk 0:01:48]}  Ne7 {[%clk 0:00:02]} 32. Rg3 {[%clk 0:01:47]}  Nxf5 {[%clk 0:00:02]} 33. Rxg5 {[%clk 0:01:46]}  fxg5 {[%clk 0:00:03]} 34. Qf3 {[%clk 0:01:35]}  g6 {[%clk 0:00:03]} 35. g4 {[%clk 0:01:35]}  Nxd4 {[%clk 0:00:03]} 36. Qxf8 {[%clk 0:01:35]}  Rxf8 {[%clk 0:00:04]} 37. Rxf8 {[%clk 0:01:36]}  Na6 {[%clk 0:00:03]} 38. Nxa6 {[%clk 0:01:35]}  Nxe6 {[%clk 0:00:03]} 39. Rf6 {[%clk 0:01:35]}  Nf4 {[%clk 0:00:03]} 40. Rxc6 {[%clk 0:01:35]}  b3 {[%clk 0:00:04]} 41. axb3 {[%clk 0:01:35]}  h5 {[%clk 0:00:04]} 42. gxh5 {[%clk 0:01:35]}  gxh5 {[%clk 0:00:05]} 43. Nc5 {[%clk 0:01:35]}  Ne2+ {[%clk 0:00:05]} 44. Kf2 {[%clk 0:01:35]}  Nd4 {[%clk 0:00:06]} 45. Ra6 {[%clk 0:01:35]}  Nxb3 {[%clk 0:00:03]} 46. Nxb3 {[%clk 0:01:34]}  a4 {[%clk 0:00:04]} 47. Nc5 {[%clk 0:01:34]} 1-0


[Site "https://www.chess.com"]

[Event "Titled Tuesday Blitz April 05 Late 2022"]
[White "Sarkar, Justin"]
[Black "Moral Garcia, Serafin"]
[WhiteFideId "2010011"]
[BlackFideId "2201925"]
[WhiteElo "2326"]
[BlackElo "2508"]
[Result "0-1"]
[Round "08"]
[TimeControl "180+1"]
[Date "2022.04.06"]
[WhiteClock "0:00:01"]
[BlackClock "0:00:14"]

1. d4 {[%clk 0:03:00]}  f6 {[%clk 0:02:59]} 2. e4 {[%clk 0:02:59]}  e6 {[%clk 0:02:57]} 3. c4 {[%clk 0:02:56]}  c6 {[%clk 0:02:57]} 4. Nc3 {[%clk 0:02:53]}  d5 {[%clk 0:02:54]} 5. cxd5 {[%clk 0:02:42]}  exd5 {[%clk 0:01:22]} 6. exd5 {[%clk 0:02:43]}  Bb4 {[%clk 0:01:21]} 7. Bc4 {[%clk 0:02:32]}  Ne7 {[%clk 0:01:19]} 8. dxc6 {[%clk 0:02:23]}  Nbxc6 {[%clk 0:01:19]} 9. Ne2 {[%clk 0:02:21]}  Bg4 {[%clk 0:01:18]} 10. O-O {[%clk 0:02:12]}  Qd6 {[%clk 0:01:13]} 11. Nb5 {[%clk 0:01:56]}  Qd7 {[%clk 0:01:12]} 12. Bf4 {[%clk 0:01:39]}  Ng6 {[%clk 0:01:11]} 13. Bg3 {[%clk 0:01:22]}  O-O-O {[%clk 0:01:06]} 14. a3 {[%clk 0:01:12]}  Be7 {[%clk 0:01:02]} 15. f3 {[%clk 0:01:04]}  Be6 {[%clk 0:00:56]} 16. Rc1 {[%clk 0:00:53]}  Bxc4 {[%clk 0:00:30]} 17. Rxc4 {[%clk 0:00:51]}  Qd5 {[%clk 0:00:30]} 18. Nxa7+ {[%clk 0:00:43]}  Kd7 {[%clk 0:00:31]} 19. Nxc6 {[%clk 0:00:42]}  Qxc4 {[%clk 0:00:24]} 20. Nxd8 {[%clk 0:00:40]}  Rxd8 {[%clk 0:00:25]} 21. Qd2 {[%clk 0:00:36]}  Bd6 {[%clk 0:00:19]} 22. Bxd6 {[%clk 0:00:32]}  Kxd6 {[%clk 0:00:19]} 23. Rc1 {[%clk 0:00:32]}  Qb5 {[%clk 0:00:20]} 24. Nc3 {[%clk 0:00:30]}  Qb3 {[%clk 0:00:20]} 25. Ne4+ {[%clk 0:00:30]}  Ke7 {[%clk 0:00:20]} 26. Rc7+ {[%clk 0:00:28]}  Kf8 {[%clk 0:00:20]} 27. Nc5 {[%clk 0:00:12]}  Qa2 {[%clk 0:00:20]} 28. Rxb7 {[%clk 0:00:07]}  Qb1+ {[%clk 0:00:19]} 29. Kf2 {[%clk 0:00:07]}  Kg8 {[%clk 0:00:18]} 30. Ne6 {[%clk 0:00:06]}  Rc8 {[%clk 0:00:18]} 31. Rxg7+ {[%clk 0:00:05]}  Kh8 {[%clk 0:00:17]} 32. Rc7 {[%clk 0:00:01]}  Re8 {[%clk 0:00:15]} 33. d5 {[%clk 0:00:02]}  Qf5 {[%clk 0:00:14]} 34. Qe3 {[%clk 0:00:01]}  Ne5 {[%clk 0:00:14]} 0-1


[Site "https://www.chess.com"]

[Event "Titled Tuesday Blitz April 05 Late 2022"]
[White "Sevian, Samuel"]
[Black "Hambleton, Aman"]
[WhiteFideId "2040506"]
[BlackFideId "2606577"]
[WhiteElo "2698"]
[BlackElo "2552"]
[Result "1-0"]
[Round "08"]
[TimeControl "180+1"]
[Date "2022.04.05"]
[WhiteClock "0:00:50"]
[BlackClock "0:00:02"]

1. f4 {[%clk 0:03:00]}  d5 {[%clk 0:02:58]} 2. Nf3 {[%clk 0:03:00]}  Nh6 {[%clk 0:02:59]} 3. g3 {[%clk 0:03:00]}  Bg4 {[%clk 0:02:59]} 4. Bg2 {[%clk 0:03:00]}  e6 {[%clk 0:02:53]} 5. O-O {[%clk 0:02:58]}  Nd7 {[%clk 0:02:28]} 6. Nc3 {[%clk 0:02:57]}  Bc5+ {[%clk 0:01:45]} 7. e3 {[%clk 0:02:56]}  Nf5 {[%clk 0:01:38]} 8. Qe1 {[%clk 0:02:56]}  c6 {[%clk 0:01:16]} 9. h3 {[%clk 0:02:53]}  Bxf3 {[%clk 0:01:14]} 10. Bxf3 {[%clk 0:02:53]}  h5 {[%clk 0:00:45]} 11. Kh2 {[%clk 0:02:51]}  g5 {[%clk 0:00:37]} 12. d4 {[%clk 0:02:42]}  Bd6 {[%clk 0:00:36]} 13. e4 {[%clk 0:02:37]}  Nxd4 {[%clk 0:00:29]} 14. exd5 {[%clk 0:02:37]}  cxd5 {[%clk 0:00:19]} 15. Bxd5 {[%clk 0:02:32]}  Nxc2 {[%clk 0:00:17]} 16. Qe2 {[%clk 0:02:30]}  Nxa1 {[%clk 0:00:17]} 17. fxg5 {[%clk 0:02:16]}  Ne5 {[%clk 0:00:06]} 18. Bxb7 {[%clk 0:02:09]}  Rb8 {[%clk 0:00:07]} 19. Ba6 {[%clk 0:02:07]}  h4 {[%clk 0:00:07]} 20. Ne4 {[%clk 0:02:07]}  hxg3+ {[%clk 0:00:07]} 21. Kg2 {[%clk 0:02:08]}  Be7 {[%clk 0:00:05]} 22. Bf4 {[%clk 0:02:04]}  Qd5 {[%clk 0:00:03]} 23. b3 {[%clk 0:01:56]}  Rb6 {[%clk 0:00:02]} 24. Rd1 {[%clk 0:01:56]}  Qa5 {[%clk 0:00:02]} 25. Bc8 {[%clk 0:01:46]}  Ng6 {[%clk 0:00:02]} 26. Bd7+ {[%clk 0:01:43]}  Kf8 {[%clk 0:00:02]} 27. Bc7 {[%clk 0:01:43]}  Qf5 {[%clk 0:00:03]} 28. Rh1 {[%clk 0:01:38]}  Nf4+ {[%clk 0:00:03]} 29. Bxf4 {[%clk 0:01:38]}  Qxf4 {[%clk 0:00:04]} 30. g6 {[%clk 0:01:36]}  Kg7 {[%clk 0:00:02]} 31. gxf7 {[%clk 0:01:31]}  Rb4 {[%clk 0:00:03]} 32. Bc6 {[%clk 0:01:31]}  Rc8 {[%clk 0:00:03]} 33. Rf1 {[%clk 0:01:29]}  Qh6 {[%clk 0:00:02]} 34. Qg4+ {[%clk 0:01:25]}  Kh8 {[%clk 0:00:02]} 35. Qxg3 {[%clk 0:01:18]}  Nc2 {[%clk 0:00:02]} 36. Kh1 {[%clk 0:01:12]}  Rxe4 {[%clk 0:00:02]} 37. Bxe4 {[%clk 0:01:11]}  Ne3 {[%clk 0:00:02]} 38. Rg1 {[%clk 0:01:11]}  Bg5 {[%clk 0:00:01]} 39. Qe5+ {[%clk 0:00:59]}  Qf6 {[%clk 0:00:01]} 40. Qxg5 {[%clk 0:00:57]}  Qxg5 {[%clk 0:00:01]} 41. Rxg5 {[%clk 0:00:58]}  Rf8 {[%clk 0:00:01]} 42. Rg3 {[%clk 0:00:54]}  Nf5 {[%clk 0:00:01]} 43. Rg6 {[%clk 0:00:54]}  Rxf7 {[%clk 0:00:01]} 44. Rxe6 {[%clk 0:00:54]}  Ng3+ {[%clk 0:00:02]} 45. Kg2 {[%clk 0:00:53]}  Ne2 {[%clk 0:00:02]} 46. Re5 {[%clk 0:00:50]}  Nd4 {[%clk 0:00:01]} 47. Bd5 {[%clk 0:00:48]}  Rg7+ {[%clk 0:00:01]} 48. Kf2 {[%clk 0:00:48]}  Nc2 {[%clk 0:00:01]} 49. Rh5+ {[%clk 0:00:48]}  Rh7 {[%clk 0:00:02]} 50. Rxh7+ {[%clk 0:00:49]}  Kxh7 {[%clk 0:00:02]} 51. Be4+ {[%clk 0:00:50]} 1-0


[Site "https://www.chess.com"]

[Event "Titled Tuesday Blitz April 05 Late 2022"]
[White "Soysal, Serkan"]
[Black "Ilyasli, Ughur"]
[WhiteFideId "6349250"]
[BlackFideId "13416197"]
[WhiteElo "2584"]
[BlackElo "2420"]
[Result "1-0"]
[Round "08"]
[TimeControl "180+1"]
[Date "2022.04.06"]
[WhiteClock "0:00:08"]
[BlackClock "0:00:04"]

1. Nf3 {[%clk 0:03:00]}  Nf6 {[%clk 0:02:59]} 2. g3 {[%clk 0:03:00]}  d5 {[%clk 0:02:59]} 3. Bg2 {[%clk 0:02:59]}  c6 {[%clk 0:03:00]} 4. O-O {[%clk 0:02:59]}  Bg4 {[%clk 0:03:00]} 5. d4 {[%clk 0:02:54]}  Nbd7 {[%clk 0:02:59]} 6. c4 {[%clk 0:02:54]}  dxc4 {[%clk 0:02:53]} 7. Nbd2 {[%clk 0:02:43]}  b5 {[%clk 0:02:48]} 8. Qc2 {[%clk 0:02:26]}  Rc8 {[%clk 0:02:43]} 9. b3 {[%clk 0:02:25]}  cxb3 {[%clk 0:02:39]} 10. axb3 {[%clk 0:02:25]}  Qb6 {[%clk 0:02:33]} 11. Ba3 {[%clk 0:02:10]}  g6 {[%clk 0:01:57]} 12. Rfc1 {[%clk 0:01:57]}  Bg7 {[%clk 0:01:54]} 13. Ne5 {[%clk 0:01:39]}  Qxd4 {[%clk 0:01:33]} 14. Nxc6 {[%clk 0:01:20]}  Qb6 {[%clk 0:01:16]} 15. Qd3 {[%clk 0:00:49]}  Bf5 {[%clk 0:00:53]} 16. e4 {[%clk 0:00:36]}  Rxc6 {[%clk 0:00:36]} 17. Rxc6 {[%clk 0:00:26]}  Qxc6 {[%clk 0:00:37]} 18. exf5 {[%clk 0:00:26]}  Qb6 {[%clk 0:00:28]} 19. Re1 {[%clk 0:00:13]}  O-O {[%clk 0:00:27]} 20. Rxe7 {[%clk 0:00:10]}  b4 {[%clk 0:00:23]} 21. Nc4 {[%clk 0:00:08]}  Qc5 {[%clk 0:00:11]} 22. Bxb4 {[%clk 0:00:03]}  Qxb4 {[%clk 0:00:11]} 23. Rxd7 {[%clk 0:00:04]}  Nxd7 {[%clk 0:00:11]} 24. Qxd7 {[%clk 0:00:05]}  Qxb3 {[%clk 0:00:10]} 25. Bd5 {[%clk 0:00:06]}  Qd1+ {[%clk 0:00:09]} 26. Kg2 {[%clk 0:00:06]}  Qa1 {[%clk 0:00:08]} 27. Nd6 {[%clk 0:00:05]}  Qf6 {[%clk 0:00:08]} 28. g4 {[%clk 0:00:02]}  gxf5 {[%clk 0:00:07]} 29. Nxf5 {[%clk 0:00:02]}  h5 {[%clk 0:00:04]} 30. h3 {[%clk 0:00:02]}  hxg4 {[%clk 0:00:04]} 31. hxg4 {[%clk 0:00:03]}  Qg5 {[%clk 0:00:04]} 32. f3 {[%clk 0:00:03]}  Qd2+ {[%clk 0:00:02]} 33. Kg3 {[%clk 0:00:03]}  Qg5 {[%clk 0:00:03]} 34. Kg2 {[%clk 0:00:03]}  Qf6 {[%clk 0:00:04]} 35. Qc7 {[%clk 0:00:02]}  Qb2+ {[%clk 0:00:03]} 36. Kh3 {[%clk 0:00:02]}  Qb6 {[%clk 0:00:04]} 37. Qd7 {[%clk 0:00:02]}  Qf6 {[%clk 0:00:04]} 38. Kg3 {[%clk 0:00:02]}  a5 {[%clk 0:00:04]} 39. f4 {[%clk 0:00:02]}  a4 {[%clk 0:00:05]} 40. g5 {[%clk 0:00:03]}  Qc3+ {[%clk 0:00:05]} 41. Kg4 {[%clk 0:00:04]}  Qb2 {[%clk 0:00:03]} 42. Ne7+ {[%clk 0:00:03]}  Kh8 {[%clk 0:00:03]} 43. Qf5 {[%clk 0:00:03]}  Qf2 {[%clk 0:00:02]} 44. Qd3 {[%clk 0:00:03]}  Qg1+ {[%clk 0:00:02]} 45. Kf5 {[%clk 0:00:03]}  Qh2 {[%clk 0:00:01]} 46. Bc4 {[%clk 0:00:01]}  Qh7+ {[%clk 0:00:02]} 47. g6 {[%clk 0:00:01]}  fxg6+ {[%clk 0:00:02]} 48. Ke6 {[%clk 0:00:02]}  g5 {[%clk 0:00:02]} 49. f5 {[%clk 0:00:02]}  Rf6+ {[%clk 0:00:02]} 50. Kd7 {[%clk 0:00:02]}  Bh6 {[%clk 0:00:01]} 51. Qd5 {[%clk 0:00:01]}  Qg7 {[%clk 0:00:02]} 52. Qa8+ {[%clk 0:00:01]}  Rf8 {[%clk 0:00:02]} 53. Qd5 {[%clk 0:00:02]}  g4 {[%clk 0:00:03]} 54. Qe6 {[%clk 0:00:02]}  Bg5 {[%clk 0:00:03]} 55. Kd6 {[%clk 0:00:02]}  Bxe7+ {[%clk 0:00:03]} 56. Qxe7 {[%clk 0:00:03]}  Qxe7+ {[%clk 0:00:04]} 57. Kxe7 {[%clk 0:00:04]}  Rf6 {[%clk 0:00:04]} 58. Kxf6 {[%clk 0:00:04]}  a3 {[%clk 0:00:04]} 59. Ke7 {[%clk 0:00:05]}  g3 {[%clk 0:00:04]} 60. f6 {[%clk 0:00:05]}  g2 {[%clk 0:00:04]} 61. f7 {[%clk 0:00:06]}  g1=Q {[%clk 0:00:04]} 62. f8=Q+ {[%clk 0:00:07]}  Kh7 {[%clk 0:00:04]} 63. Bd3+ {[%clk 0:00:08]} 1-0


[Site "https://www.chess.com"]

[Event "Titled Tuesday Blitz April 05 Late 2022"]
[White "Tregubov, Pavel V."]
[Black "Buchenau, Frank"]
[WhiteFideId "4115341"]
[BlackFideId "4604350"]
[WhiteElo "2611"]
[BlackElo "2469"]
[Result "1-0"]
[Round "08"]
[TimeControl "180+1"]
[Date "2022.04.06"]
[WhiteClock "0:00:17"]
[BlackClock "0:00:05"]

1. e4 {[%clk 0:03:00]}  e6 {[%clk 0:02:59]} 2. d4 {[%clk 0:03:00]}  d5 {[%clk 0:03:00]} 3. exd5 {[%clk 0:03:00]}  exd5 {[%clk 0:02:59]} 4. Nf3 {[%clk 0:03:00]}  Bf5 {[%clk 0:02:59]} 5. Bd3 {[%clk 0:02:56]}  Bxd3 {[%clk 0:02:59]} 6. Qxd3 {[%clk 0:02:57]}  Nc6 {[%clk 0:03:00]} 7. Qb5 {[%clk 0:02:51]}  a6 {[%clk 0:02:51]} 8. Qb3 {[%clk 0:02:46]}  Bd6 {[%clk 0:02:45]} 9. O-O {[%clk 0:02:43]}  Nge7 {[%clk 0:02:45]} 10. Re1 {[%clk 0:02:33]}  O-O {[%clk 0:02:45]} 11. Nbd2 {[%clk 0:02:33]}  Qd7 {[%clk 0:02:36]} 12. Nf1 {[%clk 0:02:32]}  Rae8 {[%clk 0:02:24]} 13. Bd2 {[%clk 0:02:16]}  b5 {[%clk 0:02:04]} 14. a4 {[%clk 0:02:14]}  b4 {[%clk 0:01:58]} 15. a5 {[%clk 0:02:15]}  Rb8 {[%clk 0:01:50]} 16. Ne5 {[%clk 0:02:02]}  Bxe5 {[%clk 0:01:44]} 17. dxe5 {[%clk 0:02:03]}  Nd4 {[%clk 0:01:31]} 18. Qd3 {[%clk 0:02:00]}  c5 {[%clk 0:01:29]} 19. Be3 {[%clk 0:01:50]}  Nef5 {[%clk 0:01:21]} 20. Ng3 {[%clk 0:01:50]}  Nxe3 {[%clk 0:01:03]} 21. Rxe3 {[%clk 0:01:39]}  Qb5 {[%clk 0:00:57]} 22. c3 {[%clk 0:01:29]}  Qxd3 {[%clk 0:00:47]} 23. Rxd3 {[%clk 0:01:29]}  bxc3 {[%clk 0:00:39]} 24. bxc3 {[%clk 0:01:26]}  Nb3 {[%clk 0:00:24]} 25. Rad1 {[%clk 0:01:20]}  d4 {[%clk 0:00:23]} 26. cxd4 {[%clk 0:01:14]}  Nxd4 {[%clk 0:00:21]} 27. Ne4 {[%clk 0:01:11]}  Rb5 {[%clk 0:00:20]} 28. g3 {[%clk 0:00:50]}  Rxa5 {[%clk 0:00:20]} 29. f4 {[%clk 0:00:49]}  Rb5 {[%clk 0:00:16]} 30. Nxc5 {[%clk 0:00:44]}  Nf3+ {[%clk 0:00:15]} 31. Rxf3 {[%clk 0:00:43]}  Rxc5 {[%clk 0:00:14]} 32. Rd7 {[%clk 0:00:39]}  a5 {[%clk 0:00:14]} 33. Ra7 {[%clk 0:00:38]}  g6 {[%clk 0:00:13]} 34. Kg2 {[%clk 0:00:37]}  Rb8 {[%clk 0:00:12]} 35. Kh3 {[%clk 0:00:34]}  Rb2 {[%clk 0:00:12]} 36. Rd3 {[%clk 0:00:32]}  Rcc2 {[%clk 0:00:12]} 37. Rd8+ {[%clk 0:00:29]}  Kg7 {[%clk 0:00:12]} 38. Rdd7 {[%clk 0:00:24]}  Rxh2+ {[%clk 0:00:12]} 39. Kg4 {[%clk 0:00:24]}  h5+ {[%clk 0:00:12]} 40. Kg5 {[%clk 0:00:24]}  Rhg2 {[%clk 0:00:08]} 41. Rxf7+ {[%clk 0:00:24]}  Kg8 {[%clk 0:00:09]} 42. Kf6 {[%clk 0:00:17]}  Rb8 {[%clk 0:00:05]} 43. Rg7+ {[%clk 0:00:16]}  Kh8 {[%clk 0:00:04]} 44. Rh7+ {[%clk 0:00:16]}  Kg8 {[%clk 0:00:04]} 45. Rag7+ {[%clk 0:00:16]}  Kf8 {[%clk 0:00:05]} 46. Rh8# {[%clk 0:00:17]} 1-0


[Site "https://www.chess.com"]

[Event "Titled Tuesday Blitz April 05 Late 2022"]
[White "Tsukerman, Julia"]
[Black "Zhou, Qiyu"]
[WhiteFideId "2621649"]
[BlackFideId "505161"]
[WhiteElo "2169"]
[BlackElo "2370"]
[Result "1-0"]
[Round "08"]
[TimeControl "180+1"]
[Date "2022.04.06"]
[WhiteClock "0:00:08"]
[BlackClock "0:00:03"]

1. e4 {[%clk 0:03:00]}  c5 {[%clk 0:02:58]} 2. Nf3 {[%clk 0:02:59]}  d6 {[%clk 0:02:59]} 3. d4 {[%clk 0:02:59]}  cxd4 {[%clk 0:03:00]} 4. Nxd4 {[%clk 0:03:00]}  Nf6 {[%clk 0:03:00]} 5. Nc3 {[%clk 0:02:59]}  Nc6 {[%clk 0:03:00]} 6. Be3 {[%clk 0:02:59]}  e5 {[%clk 0:03:00]} 7. Nb3 {[%clk 0:02:49]}  Be6 {[%clk 0:02:59]} 8. f3 {[%clk 0:02:49]}  Be7 {[%clk 0:02:56]} 9. Qd2 {[%clk 0:02:45]}  O-O {[%clk 0:02:55]} 10. O-O-O {[%clk 0:02:45]}  a5 {[%clk 0:02:55]} 11. Kb1 {[%clk 0:02:38]}  a4 {[%clk 0:02:54]} 12. Nc1 {[%clk 0:02:34]}  Qa5 {[%clk 0:02:40]} 13. g4 {[%clk 0:02:26]}  Rfb8 {[%clk 0:02:27]} 14. h4 {[%clk 0:02:22]}  b5 {[%clk 0:02:24]} 15. g5 {[%clk 0:02:11]}  Ne8 {[%clk 0:02:16]} 16. Nd5 {[%clk 0:02:08]}  b4 {[%clk 0:02:10]} 17. h5 {[%clk 0:01:54]}  b3 {[%clk 0:01:17]} 18. cxb3 {[%clk 0:01:45]}  axb3 {[%clk 0:01:16]} 19. a3 {[%clk 0:01:45]}  Bxd5 {[%clk 0:00:59]} 20. exd5 {[%clk 0:01:46]}  Qxd2 {[%clk 0:00:51]} 21. Rxd2 {[%clk 0:01:42]}  Na5 {[%clk 0:00:50]} 22. Be2 {[%clk 0:01:27]}  Nc7 {[%clk 0:00:42]} 23. Rhd1 {[%clk 0:01:23]}  Rc8 {[%clk 0:00:33]} 24. f4 {[%clk 0:01:23]}  f6 {[%clk 0:00:21]} 25. Rd3 {[%clk 0:01:12]}  Rab8 {[%clk 0:00:19]} 26. Rc3 {[%clk 0:01:06]}  exf4 {[%clk 0:00:14]} 27. Bxf4 {[%clk 0:01:03]}  fxg5 {[%clk 0:00:14]} 28. Bg3 {[%clk 0:00:52]}  Bf6 {[%clk 0:00:13]} 29. Re3 {[%clk 0:00:36]}  Ne8 {[%clk 0:00:09]} 30. Re6 {[%clk 0:00:36]}  Rc2 {[%clk 0:00:07]} 31. Nd3 {[%clk 0:00:30]}  Rbc8 {[%clk 0:00:04]} 32. Be1 {[%clk 0:00:25]}  Nc4 {[%clk 0:00:04]} 33. Rc1 {[%clk 0:00:19]}  Rxc1+ {[%clk 0:00:03]} 34. Nxc1 {[%clk 0:00:18]}  Nxb2 {[%clk 0:00:03]} 35. Nxb3 {[%clk 0:00:18]}  Na4 {[%clk 0:00:02]} 36. Re3 {[%clk 0:00:17]}  Nc5 {[%clk 0:00:02]} 37. Ka2 {[%clk 0:00:13]}  Nd7 {[%clk 0:00:02]} 38. Rd3 {[%clk 0:00:12]}  Ne5 {[%clk 0:00:02]} 39. Rd2 {[%clk 0:00:12]}  Nc7 {[%clk 0:00:02]} 40. Nd4 {[%clk 0:00:12]}  Rb8 {[%clk 0:00:02]} 41. Nc6 {[%clk 0:00:12]}  Nxc6 {[%clk 0:00:02]} 42. dxc6 {[%clk 0:00:13]}  d5 {[%clk 0:00:02]} 43. Bf2 {[%clk 0:00:11]}  Rc8 {[%clk 0:00:02]} 44. Rc2 {[%clk 0:00:11]}  Be5 {[%clk 0:00:02]} 45. a4 {[%clk 0:00:11]}  Kf7 {[%clk 0:00:02]} 46. a5 {[%clk 0:00:11]}  Ra8 {[%clk 0:00:03]} 47. Bb6 {[%clk 0:00:09]}  Na6 {[%clk 0:00:03]} 48. c7 {[%clk 0:00:08]}  Nxc7 {[%clk 0:00:03]} 49. Bxc7 {[%clk 0:00:09]}  Bxc7 {[%clk 0:00:03]} 50. Rxc7+ {[%clk 0:00:09]}  Ke6 {[%clk 0:00:04]} 51. a6 {[%clk 0:00:09]}  Kd6 {[%clk 0:00:03]} 52. Rxg7 {[%clk 0:00:08]}  d4 {[%clk 0:00:04]} 53. Rxh7 {[%clk 0:00:08]}  g4 {[%clk 0:00:03]} 54. Rg7 {[%clk 0:00:08]}  d3 {[%clk 0:00:03]} 55. Bxd3 {[%clk 0:00:08]}  Rf8 {[%clk 0:00:03]} 56. Rxg4 {[%clk 0:00:08]}  Rf2+ {[%clk 0:00:03]} 57. Kb3 {[%clk 0:00:08]} 1-0


[Site "https://www.chess.com"]